fUST/lending_fUST_20260226
["ID","MTS","AMOUNT","RATE_DAILY","PERIOD"]
[406699305,1772098241242,-217.15233878,0.00023195,2]
[406699306,1772098241252,-225.18697532,0.00023195,2]
[406699307,1772098241264,-233.51889341,0.00023195,2]
[406699308,1772098241273,-242.15909246,0.00023195,2]
[406699309,1772098241283,-251.11897888,0.00023195,2]
[406699310,1772098241293,-260.4103811,0.00023195,2]
[406699311,1772098241302,-270.0455652,0.00023195,2]
[406699312,1772098241312,-280.03725112,0.00023195,2]
[406699313,1772098241322,-290.39862941,0.00023195,2]
[406699314,1772098241332,-301.1433787,0.00023195,2]
[406699315,1772098241341,-715.0,0.00023195,3]
[406699316,1772098241351,-715.0,0.00023725,3]
[406699317,1772098241361,-100000.0,0.0002399,2]
[406699318,1772098241371,-500.0,0.00024197,2]
[406699319,1772098241381,-2181.0,0.0002429,2]
[406699320,1772098241390,-1386.0,0.0002429,2]
[406699321,1772098241400,-637.0,0.0002429,2]
[406699322,1772098241410,-430.0,0.0002429,2]
[406699323,1772098241420,-728.0,0.0002429,2]
[406699324,1772098241430,-461.89023319,0.00024331,2]
[406699325,1772098241440,-1191.9723662,0.00024347,2]
[406699326,1772098241450,-1147.400602,0.00024379,30]
[406699327,1772098241460,-1000.0,0.00024459,10]
[406699328,1772098241475,-791.0,0.00024459,10]
[406699329,1772098241486,-50000.0,0.000245,2]
[406699330,1772098241496,-206.71034475,0.000245,2]
[406699331,1772098241506,-500.0,0.00024548,2]
[406699332,1772098241517,-500.0,0.00024548,2]
[406699333,1772098241527,-150.0,0.00024548,2]
[406699334,1772098241538,-49480.0,0.000246,2]
[406699335,1772098241548,-502.0165271,0.00024603,2]
[406699336,1772098241558,-501.25617012,0.00024603,2]
[406699337,1772098241568,-150.0,0.00024603,2]
[406699338,1772098241579,-150.0,0.00024658,2]
[406699339,1772098241589,-406.59989324,0.00024658,2]
[406699340,1772098241599,-229.47307844,0.00024662,2]
[406699341,1772098241610,-262.25494679,0.00024662,2]
[406699342,1772098241620,-409.77335436,0.00024662,2]
[406699343,1772098241631,-211.96222317,0.00024681,2]
[406699344,1772098241641,-487.0,0.00024681,2]
[406699345,1772098241651,-487.0,0.00024681,2]
[406699346,1772098241662,-570.58,0.00024681,2]
[406699347,1772098241675,-331221.20096428,0.0002475,2]
[406699348,1772098241684,-704.0,0.00024804,3]
[406699349,1772098241695,-151.0,0.000249,2]
[406699350,1772098241706,-151.0,0.000249,2]
[406699351,1772098241717,-299358.07762843,0.000249,2]
[406699352,1772098241735,-10653.1402446,0.000249,2]
[406699353,1772098241748,-4193.2540775,0.000249,2]
[406699354,1772098241806,-3098.53812392,0.000249,2]
[406699355,1772098242874,-82.35867679,0.00023806,30]
[406699367,1772098244346,-263.2539,0.00019694,7]
[406699368,1772098244362,-1907.34993121,0.00023806,30]
[406699369,1772098244378,-7189.32358934,0.00024729,2]
[406699370,1772098244393,-53640.07257945,0.000249,2]
[406699371,1772098244455,-256189.4901441,0.000249,2]
[406699372,1772098244470,-1744.455705,0.000249,2]
[406699373,1772098244480,-1744.455705,0.000249,2]
[406699374,1772098244490,-1744.455705,0.000249,2]
[406699375,1772098244499,-1744.455705,0.000249,2]
[406699376,1772098244509,-3495.808876,0.000249,2]
[406699377,1772098244772,-3495.808876,0.000249,2]
[406699378,1772098244810,-3495.808876,0.000249,2]
[406699379,1772098244821,-3495.808876,0.000249,2]
[406699380,1772098244830,-3050.0,0.000249,10]
[406699381,1772098244839,-91456.6700552,0.00024941,2]
[406699382,1772098244848,-715.0,0.00024954,3]
[406699383,1772098244857,-151.0,0.0002498,2]
[406699384,1772098244866,-1088.114445,0.0002498,5]
[406699385,1772098244876,-297.834388,0.0002498,2]
[406699386,1772098244886,-151.0,0.0002498,2]
[406699387,1772098244895,-1744.455705,0.0002499,2]
[406699388,1772098244906,-1744.455705,0.0002499,2]
[406699389,1772098244915,-1744.455705,0.0002499,2]
[406699390,1772098244924,-1744.455705,0.0002499,2]
[406699391,1772098244933,-3495.808876,0.0002499,2]
[406699392,1772098244942,-3495.808876,0.0002499,2]
[406699393,1772098244951,-3495.808876,0.0002499,2]
[406699394,1772098244960,-3495.808876,0.0002499,2]
[406699395,1772098244970,-2000.0,0.00025,2]
[406699396,1772098244980,-200.0,0.00025,10]
[406699397,1772098244989,-200.0,0.00025,17]
[406699398,1772098244998,-3000.0,0.00025,15]
[406699399,1772098245007,-1000.0,0.00025,5]
[406699400,1772098245016,-1121.0,0.00025,2]
[406699401,1772098245026,-3167.84,0.00025,30]
[406699402,1772098245035,-110007.94261575,0.00025021,2]
[406699403,1772098245044,-102044.39628838,0.00025203,2]
[406699404,1772098245068,-32422.09493899,0.00025203,2]
[406699405,1772098245078,-151.0,0.00025203,2]
[406699406,1772098245088,-1744.455705,0.00025203,2]
[406699407,1772098245097,-1744.455705,0.00025203,2]
[406699408,1772098245107,-1744.455705,0.00025203,2]
[406699409,1772098245116,-1744.455705,0.00025203,2]
[406699410,1772098245126,-3495.808876,0.00025203,2]
[406699411,1772098245135,-3495.808876,0.00025203,2]
[406699412,1772098245144,-3495.808876,0.00025203,2]
[406699413,1772098245155,-3495.808876,0.00025203,2]
[406699414,1772098245164,-250.0,0.00025205,2]
[406699415,1772098245173,-403.0,0.00025234,3]
[406699416,1772098245183,-162.0,0.00025274,3]
[406699417,1772098245195,-506084.46768475,0.00025444,2]
[406699421,1772098246354,-150.0,0.000137,2]
[406699422,1772098246364,-150.0,0.000142,2]
[406699423,1772098246374,-188.76,0.000148,2]
[406699424,1772098246383,-2674.0,0.00025021,10]
[406699425,1772098246393,-25613.9100552,0.00025444,2]
[406699426,1772098246516,-40909.32841904,0.00025444,2]
[406699427,1772098267654,427.71762635,0.00013273,2]
[406699428,1772098339565,150.0,7.894e-05,30]
[406699429,1772098339928,150.0,8.376e-05,30]
[406699430,1772098340425,150.0,8.857e-05,30]
[406699431,1772098340778,150.0,9.339e-05,30]
[406699432,1772098341132,150.0,9.821e-05,30]
[406699433,1772098341494,159.01,0.00010303,30]
[406699434,1772098341832,185.51,0.00010784,30]
[406699435,1772098342399,212.01,0.00011266,30]
[406699436,1772098342602,238.51,0.00011748,30]
[406699437,1772098342908,265.01,0.0001223,30]
[406699438,1772098350625,150.0,8.018e-05,30]
[406699439,1772098353648,2034.00315307,0.00010455,2]
[406699440,1772098444848,201.56971247,0.00010455,2]
[406699443,1772098807688,150.73,9.5e-05,2]
[406699444,1772098808392,150.73,9.8e-05,2]
[406699445,1772098809098,150.73,0.000101,2]
[406699446,1772098810133,150.73,0.000104,2]
[406699447,1772098844257,3106.12560281,0.00012001,2]
[406699472,1772099016981,2925.50161944,0.00012001,2]
[406699473,1772099025967,5000.0,0.00012001,2]
[406699493,1772099139180,-329.63739798,0.00012119,2]
[406699495,1772099144026,155.4283039,0.00012001,2]
[406699501,1772099232118,-492.16479677,0.00012119,2]
[406699502,1772099232141,-181.08299825,0.00012242,2]
[406699503,1772099232165,-596.0,0.00012427,2]
[406699504,1772099232188,-1126.72401849,0.00012819,2]
[406699505,1772099237090,-73.27598151,0.00012819,2]
[406699506,1772099237111,-110.78458455,0.0001282,2]
[406699508,1772099369166,-200.72991164,0.0001272,2]
[406699509,1772099369186,-189.21541545,0.0001282,2]
[406699510,1772099369204,-300.0,0.0001282,2]
[406699511,1772099369223,-300.0,0.0001282,2]
[406699512,1772099369242,-300.0,0.0001282,2]
[406699513,1772099369264,-300.0,0.0001282,2]
[406699514,1772099369286,-177.46133828,0.0001282,2]
[406699515,1772099369310,-47450.81073257,0.00012821,2]
[406699516,1772099369333,-500.0,0.00012821,2]
[406699517,1772099369355,-500.0,0.00012821,2]
[406699518,1772099369379,-227.9347622,0.00012821,2]
[406699519,1772099369402,-500.0,0.00012821,2]
[406699520,1772099369424,-500.0,0.00012821,2]
[406699521,1772099369446,-500.0,0.00012821,2]
[406699522,1772099369468,-493.404814,0.00012821,2]
[406699523,1772099369492,-500.0,0.00012821,2]
[406699524,1772099369513,-412.82660889,0.00012821,2]
[406699559,1772099432561,-1797.33089737,0.000129,2]
[406699561,1772099432571,-603.0,0.000129,2]
[406699563,1772099432581,-207.17,0.000132,2]
[406699565,1772099432590,-300.0,0.00013272,2]
[406699567,1772099432600,-261.63544143,0.00013272,2]
[406699588,1772099432774,-38.36455857,0.00013272,2]
[406699590,1772099432785,-227.85453182,0.00013272,2]
[406699593,1772099432797,-972.14546818,0.00013272,2]
[406699595,1772099432807,-500.0,0.00013273,2]
[406699597,1772099432817,-500.0,0.00013273,2]
[406699599,1772099432827,-500.0,0.00013273,2]
[406699601,1772099432836,-500.0,0.00013273,2]
[406699603,1772099432846,-500.0,0.00013273,2]
[406699605,1772099432855,-500.0,0.00013273,2]
[406699607,1772099432864,-500.0,0.00013273,2]
[406699609,1772099432873,-427.71762635,0.00013273,2]
[406699611,1772099432883,-766.205906,0.0001351,2]
[406699613,1772099432892,-300.0,0.00013673,2]
[406699615,1772099432902,-500.0,0.00013698,2]
[406699617,1772099432912,-397.48255681,0.00013698,2]
[406699619,1772099432921,-500.0,0.00013698,2]
[406699621,1772099432931,-622.99326903,0.00013698,2]
[406699623,1772099432940,-500.0,0.00013698,2]
[406699625,1772099432949,-453.47430712,0.00013698,2]
[406699628,1772099432960,-500.0,0.00013699,2]
[406699630,1772099432969,-500.0,0.00013699,2]
[406699632,1772099432979,-500.0,0.00013699,2]
[406699634,1772099432988,-500.0,0.00013699,2]
[406699636,1772099432998,-500.0,0.00013699,2]
[406699638,1772099433008,-500.0,0.00013699,2]
[406699640,1772099433018,-500.0,0.00013699,2]
[406699642,1772099433027,-569.65079634,0.00013699,2]
[406699644,1772099433037,-199.61320858,0.00013699,2]
[406699646,1772099433046,-379.60754264,0.00013699,2]
[406699648,1772099433055,-500.0,0.00013699,2]
[406699650,1772099433066,-500.0,0.00013699,2]
[406699652,1772099433075,-500.0,0.00013699,2]
[406699654,1772099433085,-500.0,0.00013699,2]
[406699657,1772099433095,-500.0,0.00013699,2]
[406699659,1772099433104,-150.0,0.00013699,2]
[406699661,1772099433114,-500.0,0.00013699,2]
[406699663,1772099433124,-500.0,0.00013699,2]
[406699665,1772099433134,-500.0,0.00013699,2]
[406699667,1772099433143,-500.0,0.00013699,2]
[406699669,1772099433152,-500.0,0.00013699,2]
[406699671,1772099433162,-500.0,0.00013699,2]
[406699673,1772099433172,-500.0,0.00013699,2]
[406699675,1772099433182,-500.0,0.00013699,2]
[406699677,1772099433191,-500.0,0.00013699,2]
[406699679,1772099433201,-500.0,0.00013699,2]
[406699681,1772099433211,-500.0,0.00013699,2]
[406699683,1772099433221,-500.0,0.00013699,2]
[406699685,1772099433231,-500.0,0.00013699,2]
[406699687,1772099433240,-500.0,0.00013699,2]
[406699689,1772099433250,-500.0,0.00013699,2]
[406699692,1772099433262,-500.0,0.00013699,2]
[406699694,1772099433273,-161.33088549,0.00013699,2]
[406699696,1772099433283,-500.0,0.00013699,2]
[406699698,1772099433293,-500.0,0.00013699,2]
[406699700,1772099433303,-500.0,0.00013699,2]
[406699702,1772099433312,-500.0,0.00013699,2]
[406699704,1772099433322,-158.42404385,0.00013699,2]
[406699706,1772099433332,-500.0,0.00013699,2]
[406699708,1772099433342,-500.0,0.00013699,2]
[406699710,1772099433352,-166.26417438,0.00013699,2]
[406699712,1772099433361,-500.0,0.00013699,2]
[406699714,1772099433371,-500.41406331,0.00013699,2]
[406699716,1772099433380,-500.0,0.00013699,2]
[406699718,1772099433390,-500.0,0.00013699,2]
[406699720,1772099433400,-500.1978309,0.00013699,2]
[406699722,1772099433411,-500.0,0.00013699,2]
[406699724,1772099433420,-592.53162647,0.00013699,2]
[406699726,1772099433430,-500.0,0.00013699,2]
[406699728,1772099433439,-500.0,0.00013699,2]
[406699730,1772099433449,-244.75750508,0.00013699,2]
[406699732,1772099433460,-500.0,0.00013699,2]
[406699734,1772099433469,-500.0,0.00013699,2]
[406699736,1772099433479,-500.0,0.00013699,2]
[406699738,1772099433489,-500.0,0.00013699,2]
[406699740,1772099433499,-500.0,0.00013699,2]
[406699742,1772099433512,-500.0,0.00013699,2]
[406699744,1772099433522,-533.66222105,0.00013699,2]
[406699746,1772099433531,-547.06491265,0.00013699,2]
[406699748,1772099433541,-500.20533029,0.00013699,2]
[406699750,1772099433551,-358.26389884,0.00013699,2]
[406699752,1772099433561,-500.0,0.00013699,2]
[406699754,1772099433571,-500.0,0.00013699,2]
[406699756,1772099433580,-500.0,0.00013699,2]
[406699758,1772099433590,-500.0,0.00013699,2]
[406699760,1772099433599,-500.0,0.00013699,2]
[406699762,1772099433609,-500.0,0.00013699,2]
[406699764,1772099433619,-500.71834181,0.00013699,2]
[406699766,1772099433629,-486.2954479,0.00013699,2]
[406699768,1772099433638,-500.0,0.00013699,2]
[406699770,1772099433648,-528.57330899,0.00013699,2]
[406699772,1772099433657,-500.0,0.00013699,2]
[406699774,1772099433667,-500.0,0.00013699,2]
[406699776,1772099433677,-500.0,0.00013699,2]
[406699778,1772099433687,-500.46554818,0.00013699,2]
[406699780,1772099433696,-500.0,0.00013699,2]
[406699782,1772099433705,-500.0,0.00013699,2]
[406699784,1772099433716,-1000.0,0.00013821,2]
[406699786,1772099433727,-1000.0,0.00013821,2]
[406699788,1772099433736,-1000.0,0.00013821,2]
[406699791,1772099433746,-633.68037286,0.00013821,2]
[406699793,1772099433757,-1000.0,0.00013821,2]
[406699795,1772099433767,-1000.0,0.00013821,2]
[406699797,1772099433777,-1000.0,0.00013821,2]
[406699799,1772099433787,-600.0,0.00013972,2]
[406699801,1772099433796,-766.205906,0.00014079,2]
[406699803,1772099433806,-600.0,0.00014221,2]
[406699805,1772099433816,-500.0,0.00014247,2]
[406699807,1772099433826,-500.0,0.00014247,2]
[406699809,1772099433836,-500.0,0.00014247,2]
[406699811,1772099433845,-671.72669464,0.00014247,2]
[406699813,1772099433855,-500.0,0.00014247,2]
[406699815,1772099433865,-500.0,0.00014247,2]
[406699817,1772099433874,-902.06464836,0.00014247,2]
[406699819,1772099433884,-150.17622229,0.00014247,2]
[406699821,1772099433894,-512.06438372,0.00014247,2]
[406699823,1772099433902,-500.50202877,0.00014247,2]
[406699831,1772099434100,-500.66744206,0.00014247,2]
[406699833,1772099434112,-449.40800837,0.00014247,2]
[406699835,1772099434122,-1000.0,0.00014247,2]
[406699837,1772099434132,-1030.89313027,0.00014247,2]
[406699839,1772099434141,-502.5509964,0.00014247,2]
[406699841,1772099434150,-500.0,0.00014247,2]
[406699843,1772099434159,-500.0,0.00014247,2]
[406699845,1772099434168,-512.01103336,0.00014247,2]
[406699847,1772099434178,-225.6751161,0.00014247,2]
[406700148,1772099438908,-150.93810699,0.00014247,2]
[406700149,1772099438924,-125.86674845,0.00014247,2]
[406700150,1772099438933,-500.0,0.00014247,2]
[406700151,1772099438943,-500.0,0.00014247,2]
[406700152,1772099438953,-242.32245964,0.00014247,2]
[406700153,1772099438962,-303.62179514,0.00014247,2]
[406700154,1772099438972,-500.0,0.00014247,2]
[406700155,1772099438981,-213.44843704,0.00014247,2]
[406700693,1772099446139,-150.0,0.000137,2]
[406700695,1772099446149,-150.0,0.000142,2]
[406700697,1772099446158,-286.55156296,0.00014247,2]
[406700699,1772099446168,-925.64240474,0.00014247,2]
[406700701,1772099446177,-1003.98896467,0.00014247,2]
[406700703,1772099446186,-166.49657751,0.00014247,2]
[406700705,1772099446195,-1000.0,0.00014247,2]
[406700707,1772099446204,-1000.0,0.00014247,2]
[406700709,1772099446213,-500.0,0.00014247,2]
[406700711,1772099446222,-500.0,0.00014247,2]
[406700713,1772099446231,-264.42252968,0.00014247,2]
[406700715,1772099446241,-500.0,0.00014247,2]
[406700717,1772099446250,-167.0984779,0.00014247,2]
[406700719,1772099446259,-161.06781908,0.00014247,2]
[406700721,1772099446267,-1054.53603554,0.00014368,2]
[406700723,1772099446277,-566.43523267,0.00014368,2]
[406700725,1772099446285,-1000.0,0.00014368,2]
[406700727,1772099446295,-1500.0,0.00014368,2]
[406700728,1772099446304,-1500.0,0.00014368,2]
[406700731,1772099446314,-1000.0,0.00014368,2]
[406700732,1772099446323,-766.205906,0.00014648,2]
[406700733,1772099446333,-176.65358506,0.00014768,2]
[406700734,1772099446343,-502.43885624,0.00014795,2]
[406700735,1772099446352,-1500.0,0.00014795,2]
[406700736,1772099446362,-1500.0,0.00014795,2]
[406700737,1772099446372,-150.0,0.000148,2]
[406700739,1772099446381,-209.40437917,0.0001482,2]
[406700740,1772099446390,-1459.43881735,0.00014916,2]
[406700741,1772099446400,-1948.99688877,0.00014916,2]
[406700742,1772099446410,-1797.33089733,0.00015096,2]
[406700744,1772099446419,-766.205906,0.00015217,2]
[406700746,1772099446428,-1013.0968782,0.00015342,2]
[406700748,1772099446437,-720.0,0.00015369,2]
[406700750,1772099446447,-766.205906,0.00015785,2]
[406700752,1772099446455,-766.205906,0.00016354,2]
[406700754,1772099446464,-241.34742006,0.0001682,2]
[406700755,1772099446474,-864.0,0.00016906,2]
[406700757,1772099446483,-1797.33089733,0.0001747,2]
[406700759,1772099446493,-1000.0,0.00018596,2]
[406700761,1772099446504,-273.29046096,0.0001882,2]
[406700763,1772099446514,-744.71502317,0.00019136,2]
[406700766,1772099446524,-245.0,0.00019172,2]
[406700768,1772099446535,-256.9867,0.00019339,30]
[406700769,1772099446547,-1797.33089733,0.00019845,2]
[406700771,1772099446556,-500.0,0.00020096,2]
[406700774,1772099446567,-1000.0,0.00020456,2]
[406700775,1772099446577,-244.0,0.00020456,2]
[406700777,1772099446586,-305.23350185,0.0002082,2]
[406700780,1772099446596,-500.0,0.00021114,2]
[406700781,1772099446605,-158.95746701,0.0002172,5]
[406700784,1772099446615,-885.667,0.00021834,2]
[406700786,1772099446624,-637.0,0.00021834,2]
[406700787,1772099446635,-2181.0,0.00021834,2]
[406700789,1772099446644,-728.0,0.00021834,2]
[406700790,1772099446654,-2000.0,0.00021917,2]
[406700791,1772099446663,-500.0,0.00022119,2]
[406700792,1772099446672,-1797.33089733,0.0002222,2]
[406700793,1772099446682,-1000.0,0.00022501,10]
[406700794,1772099446691,-492.0,0.00022501,10]
[406700795,1772099446700,-2811.0,0.00022727,10]
[406700797,1772099446709,-337.17654274,0.0002282,2]
[406700799,1772099446718,-500.0,0.00023065,2]
[406700800,1772099446727,-500.0,0.00023321,2]
[406700801,1772099446738,-194.72792766,0.00023699,2]
[406700803,1772099446747,-201.93286099,0.00023699,2]
[406700804,1772099446756,-209.40437684,0.00023699,2]
[406700806,1772099446766,-217.15233878,0.00023699,2]
[406700808,1772099446775,-225.18697532,0.00023699,2]
[406700810,1772099446785,-233.51889341,0.00023699,2]
[406700812,1772099446794,-242.15909246,0.00023699,2]
[406700813,1772099446803,-251.11897888,0.00023699,2]
[406700814,1772099446812,-260.4103811,0.00023699,2]
[406700815,1772099446822,-270.0455652,0.00023699,2]
[406700816,1772099446832,-280.03725112,0.00023699,2]
[406700817,1772099446842,-290.39862941,0.00023699,2]
[406700818,1772099446851,-301.1433787,0.00023699,2]
[406700819,1772099446860,-259.39545107,0.00024329,2]
[406700820,1772099446869,-403.0,0.00024484,3]
[406700821,1772099446879,-162.0,0.00024484,3]
[406700822,1772099446888,-1797.33089733,0.00024595,2]
[406700823,1772099446897,-683.4837,0.00024648,7]
[406700824,1772099446907,-160.0,0.00024658,2]
[406700825,1772099446916,-160.0,0.00024658,2]
[406700826,1772099446925,-160.0,0.00024658,2]
[406700827,1772099446935,-160.0,0.00024658,2]
[406700828,1772099446944,-160.0,0.00024658,2]
[406700829,1772099446953,-203.46465514,0.00024658,2]
[406700830,1772099446963,-150.0,0.00024658,2]
[406700831,1772099446972,-380.0,0.00024658,2]
[406700832,1772099446982,-150.0,0.00024658,2]
[406700833,1772099446991,-211.96222318,0.00024681,2]
[406700834,1772099447001,-150.0,0.00024713,2]
[406700835,1772099447011,-1000.0,0.00024752,10]
[406700836,1772099447020,-791.0,0.00024752,10]
[406700837,1772099447030,-150.0,0.00024768,2]
[406700838,1772099447041,-369.11958363,0.0002482,2]
[406700839,1772099447050,-193.24848161,0.00024822,2]
[406700840,1772099447059,-637.0,0.00024834,2]
[406700841,1772099447068,-2181.0,0.00024834,2]
[406700842,1772099447078,-728.0,0.00024834,2]
[406700843,1772099447088,-73500.9508628,0.000249,2]
[406700844,1772099447097,-715.0,0.00024954,3]
[406700845,1772099447106,-586.95,0.0002499,3]
[406700846,1772099447116,-3000.0,0.00025,4]
[406700847,1772099447125,-331.38372517,0.00025,14]
[406700848,1772099447135,-19007.04,0.00025,30]
[406700849,1772099447145,-1864.26757648,0.0002519,10]
[406700850,1772099447155,-36750.4754314,0.00025195,2]
[406700851,1772099447164,-250.0,0.00025205,2]
[406700852,1772099447174,-1044.2795653,0.00025279,2]
[406700853,1772099447183,-200.0,0.000254,18]
[406700854,1772099447193,-404255.229746,0.00025434,2]
[406700855,1772099447202,-487.0,0.00025434,2]
[406700856,1772099447212,-487.0,0.00025434,2]
[406700857,1772099447221,-487.0,0.00025434,2]
[406700858,1772099447231,-487.0,0.00025434,2]
[406700859,1772099447241,-871.66,0.00025434,2]
[406700860,1772099447250,-157.442,0.00025443,2]
[406700861,1772099447260,-64220.93136019,0.00025444,2]
[406700862,1772099447323,-6174.10550098,0.00025444,2]
[406700863,1772099447463,-68373.85242581,0.00025444,2]
[406700864,1772099447475,-3940.8119427,0.00025444,2]
[406700865,1772099447558,-103.9260995,0.00025444,2]
[406700866,1772099447687,-20.45117401,0.00025444,2]
[406700867,1772099527416,168.9333,6.713e-05,2]
[406700868,1772099542151,10000.0,0.000157,120]
[406700869,1772099565771,1995.0,0.000157,120]
[406700870,1772099751464,4755.83422971,0.00012001,2]
[406700871,1772099866692,5000.0,0.00012001,2]
[406700873,1772100043947,-179.347116,0.00012205,2]
[406700874,1772100043973,-592.0,0.00012205,2]
[406700875,1772100044000,-150.0,0.00012253,2]
[406700876,1772100044026,-3845.6132188,0.00012302,2]
[406700877,1772100044050,-300.0,0.00013272,2]
[406700878,1772100044070,-179.347116,0.00013272,2]
[406700879,1772100044089,-592.0,0.00013272,2]
[406700880,1772100044103,-150.0,0.00013272,2]
[406700881,1772100044118,-278.652884,0.00013272,2]
[406700882,1772100044128,-300.0,0.00013272,2]
[406700883,1772100044138,-300.0,0.00013272,2]
[406700884,1772100044147,-500.0,0.00013273,2]
[406700885,1772100044157,-500.0,0.00013273,2]
[406700886,1772100044166,-500.0,0.00013273,2]
[406700887,1772100044175,-413.80928703,0.00013273,2]
[406700888,1772100044184,-500.0,0.00013273,2]
[406700889,1772100044194,-500.0,0.00013273,2]
[406700890,1772100044203,-53.15104777,0.00013273,2]
[406700891,1772100044217,-300.0,0.00013273,2]
[406700892,1772100044231,-146.84895223,0.00013273,2]
[406700893,1772100044240,-458.24241129,0.00013273,2]
[406700898,1772100406117,-255.0,0.00012375,2]
[406700899,1772100452422,-280.81550089,0.00012375,2]
[406700900,1772100480192,265.85,9.99e-05,2]
[406700901,1772100548101,-4527.84702534,0.00012251,2]
[406700902,1772100548158,-472.15297466,0.00012251,2]
[406700903,1772100548180,-150.0,0.00012376,2]
[406700904,1772100548202,-745.00168344,0.000125,2]
[406700905,1772100548225,-1580.18969805,0.00013173,2]
[406700906,1772100548246,-6810.35885057,0.00013272,2]
[406700907,1772100565163,-4629.55151058,0.00013139,2]
[406700910,1772100607302,189.36,9.5e-05,2]
[406700911,1772100607999,189.36,0.0001,2]
[406700912,1772100608713,189.36,0.000104,2]
[406700978,1772100637743,-89.63298853,0.00013139,2]
[406700979,1772100637754,-300.0,0.00013271,2]
[406700980,1772100637764,-900.07343083,0.00013271,2]
[406700981,1772100637777,-299.92656917,0.00013271,2]
[406700982,1772100637786,-4723.39034758,0.00013272,2]
[406700991,1772100640469,-1.0042936,0.00013272,2]
[406700992,1772100640496,-467.09992443,0.00013272,2]
[406701019,1772100643006,-2415.9946455,0.00013272,2]
[406701020,1772100643016,-300.0,0.00013272,2]
[406701021,1772100643025,-300.0,0.00013272,2]
[406701022,1772100643035,-500.0,0.00013273,2]
[406701023,1772100643046,-500.0,0.00013273,2]
[406701024,1772100643056,-266.45473474,0.00013273,2]
[406701025,1772100643066,-500.0,0.00013273,2]
[406701026,1772100643076,-500.0,0.00013273,2]
[406701027,1772100643085,-500.0,0.00013273,2]
[406701028,1772100643095,-12.02268609,0.00013273,2]
[406701029,1772100643119,-487.97731391,0.00013273,2]
[406701030,1772100643129,-500.0,0.00013273,2]
[406701031,1772100643138,-500.0,0.00013273,2]
[406701032,1772100643148,-500.0,0.00013273,2]
[406701033,1772100643158,-500.0,0.00013273,2]
[406701034,1772100643167,-500.0,0.00013273,2]
[406701035,1772100643176,-500.0,0.00013273,2]
[406701036,1772100643186,-500.0,0.00013273,2]
[406701037,1772100643195,-541.75758871,0.00013273,2]
[406701038,1772100643205,-500.0,0.00013273,2]
[406701039,1772100643215,-500.0,0.00013273,2]
[406701040,1772100643224,-500.0,0.00013273,2]
[406701041,1772100643234,-500.0,0.00013273,2]
[406701042,1772100643243,-500.0,0.00013273,2]
[406701043,1772100643252,-612.03122719,0.00013273,2]
[406701044,1772100643261,-500.0,0.00013273,2]
[406701045,1772100643271,-500.0,0.00013273,2]
[406701046,1772100643280,-500.0,0.00013273,2]
[406701047,1772100643289,-500.0,0.00013273,2]
[406701048,1772100643299,-500.0,0.00013273,2]
[406701049,1772100643307,-500.0,0.00013273,2]
[406701050,1772100643318,-502.89431935,0.00013273,2]
[406701051,1772100643328,-500.0,0.00013273,2]
[406701052,1772100643337,-500.0,0.00013273,2]
[406701053,1772100643346,-500.0,0.00013273,2]
[406701055,1772100643354,-500.0,0.00013273,2]
[406701056,1772100643363,-600.0,0.00013536,2]
[406701057,1772100643373,-150.0,0.00013673,2]